bitfinex-derivatives/quotes_BTCF0:USTF0_20260214
["timestamp","ask_amount","ask_price","bid_price","bid_amount"]
[1771047746936,0.014532,68850.0,68849.0,0.01456]
[1771047748754,0.014532,68850.0,68849.0,0.01256]
[1771047749159,0.014532,68850.0,68849.0,0.01456]
[1771047750349,0.014531,68852.0,68849.0,0.01456]
[1771047750551,0.014531,68855.0,68849.0,0.029092]
[1771047751145,0.014531,68854.0,68849.0,0.029092]
[1771047751547,0.014531,68854.0,68849.0,0.028092]
[1771047752354,0.014531,68853.0,68849.0,0.01356]
[1771047752552,0.014531,68853.0,68849.0,0.01256]
[1771047752947,0.014531,68853.0,68849.0,0.027092]
[1771047754151,0.014531,68853.0,68849.0,0.01256]
[1771047754657,0.014531,68853.0,68849.0,0.027092]
[1771047754853,0.014531,68856.0,68849.0,0.027092]
[1771047755052,0.014531,68854.0,68849.0,0.027092]
[1771047755456,0.014531,68854.0,68850.0,0.014532]
[1771047760253,0.015531,68854.0,68850.0,0.014532]
[1771047760752,0.014531,68854.0,68850.0,0.014532]
[1771047760954,0.015531,68854.0,68850.0,0.014532]
[1771047762760,0.030062,68854.0,68850.0,0.014532]
[1771047762961,0.015531,68854.0,68850.0,0.014532]
[1771047763364,0.030062,68854.0,68849.0,0.027092]
[1771047763561,0.015531,68854.0,68849.0,0.027092]
[1771047764364,0.014531,68854.0,68849.0,0.027092]
[1771047764964,0.014531,68854.0,68850.0,0.014532]
[1771047766764,0.016531,68854.0,68850.0,0.014532]
[1771047767065,0.031062,68854.0,68850.0,0.014532]
[1771047767266,0.016531,68854.0,68850.0,0.014532]
[1771047768763,0.031062,68854.0,68850.0,0.014532]
[1771047768970,0.031062,68854.0,68849.0,0.027092]
[1771047769265,0.016531,68854.0,68849.0,0.027092]
[1771047769460,0.016531,68854.0,68850.0,0.014532]
[1771047770666,0.014531,68853.0,68849.0,0.027092]
[1771047770868,0.016531,68854.0,68850.0,0.014532]
[1771047771472,0.014531,68854.0,68850.0,0.014532]
[1771047771668,0.016531,68854.0,68850.0,0.014532]
[1771047772969,0.016531,68854.0,68850.0,1e-06]
[1771047773671,0.016531,68854.0,68850.0,0.014533]
[1771047775670,0.014531,68854.0,68850.0,0.014533]
[1771047776175,0.029062,68854.0,68850.0,0.014533]
[1771047776474,0.014531,68854.0,68850.0,0.014533]
[1771047778175,0.015531,68854.0,68850.0,0.014533]
[1771047778773,0.01453,68857.0,68853.0,0.014531]
[1771047779568,0.02909,68858.0,68854.0,0.014531]
[1771047780571,0.01456,68858.0,68854.0,0.014531]
[1771047780876,0.01456,68858.0,68857.0,0.01453]
[1771047781066,0.014527,68871.0,68856.0,0.01453]
[1771047781067,0.43537525,68902.0,68856.0,0.05507042]
[1771047781267,0.06911937,68883.0,68857.0,0.05507042]
[1771047781468,0.014527,68875.0,68858.0,0.15992]
[1771047781676,0.014529,68862.0,68858.0,0.14536]
[1771047781863,0.01453,68861.0,68859.0,5.7e-05]
[1771047782172,0.029089,68866.0,68859.0,0.01453]
[1771047782476,0.014529,68865.0,68860.0,0.01453]
[1771047784271,0.029089,68866.0,68860.0,0.01453]
[1771047784980,0.014529,68865.0,68860.0,0.01453]
[1771047785584,0.029058,68865.0,68860.0,0.01453]
[1771047785779,0.014529,68863.0,68859.0,0.01453]
[1771047785976,0.014529,68864.0,68859.0,0.01453]
[1771047789681,0.014529,68864.0,68860.0,0.01453]
[1771047791176,0.014529,68864.0,68860.0,0.01553]
[1771047791983,0.014529,68864.0,68860.0,0.001]
[1771047792482,0.014529,68864.0,68860.0,0.01553]
[1771047792683,0.014529,68865.0,68860.0,0.01553]
[1771047793685,0.01456,68866.0,68860.0,0.001]
[1771047793996,0.01456,68865.0,68864.0,0.014529]
[1771047794187,0.014528,68869.0,68864.0,0.014529]
[1771047794786,0.01456,68868.0,68864.0,0.014529]
[1771047795578,0.01456,68868.0,68864.0,0.015529]
[1771047795787,0.014528,68867.0,68864.0,0.001]
[1771047797087,0.014528,68867.0,68862.0,0.014529]
[1771047797387,0.014528,68867.0,68863.0,0.014529]
[1771047797686,0.015528,68867.0,68863.0,0.014529]
[1771047798688,0.014528,68867.0,68863.0,0.014529]
[1771047798881,0.015528,68867.0,68863.0,0.014529]
[1771047799390,0.015528,68867.0,68861.0,0.014529]
[1771047799582,0.015528,68867.0,68862.0,0.014529]
[1771047800188,0.029056,68867.0,68862.0,0.014529]
[1771047800388,0.014528,68867.0,68862.0,0.014529]
[1771047800780,0.016528,68867.0,68862.0,0.014529]
[1771047800980,0.033056,68867.0,68862.0,0.014529]
[1771047801180,0.018528,68867.0,68862.0,0.014529]
[1771047803089,0.018528,68867.0,68862.0,0.029058]
[1771047803288,0.018528,68867.0,68862.0,0.014529]
[1771047803483,0.01456,68868.0,68862.0,0.014529]
[1771047803685,0.014528,68867.0,68862.0,0.014529]
[1771047804295,0.05459437,68900.0,68863.0,0.05507042]
[1771047804495,0.014525,68884.0,68878.0,0.014526]
[1771047804686,0.014525,68884.0,68879.0,0.014526]
[1771047804887,0.014525,68884.0,68878.0,0.029126]
[1771047805287,0.0146,68883.0,68878.0,0.014526]
[1771047805698,0.029125,68883.0,68878.0,0.014526]
[1771047806900,0.029125,68883.0,68878.0,0.029052]
[1771047807190,0.029125,68883.0,68878.0,0.031052]
[1771047807591,0.029125,68883.0,68878.0,0.016526]
[1771047807794,0.0146,68883.0,68879.0,0.014526]
[1771047807995,0.029125,68883.0,68879.0,0.014526]
[1771047808597,0.029125,68883.0,68871.0,0.014527]
[1771047808598,0.05459437,68882.0,68871.0,0.014527]
[1771047808799,0.014526,68876.0,68871.0,0.029127]
[1771047809004,0.014526,68876.0,68871.0,0.0146]
[1771047809297,0.029126,68876.0,68870.0,0.014528]
[1771047810093,0.0146,68876.0,68871.0,0.014527]
[1771047810290,0.029127,68876.0,68871.0,0.014527]
[1771047810900,0.014527,68875.0,68871.0,0.014527]
[1771047811294,0.014528,68870.0,68869.0,0.0146]
[1771047811499,0.014528,68870.0,68865.0,0.159848]
[1771047811500,0.014527,68871.0,68868.0,0.0146]
[1771047812303,0.014528,68870.0,68865.0,0.14532]
[1771047812493,0.014528,68870.0,68866.0,0.014528]
[1771047813302,0.014527,68871.0,68866.0,0.014528]
[1771047813800,0.014527,68872.0,68863.0,0.014529]
[1771047813998,0.014528,68870.0,68865.0,0.014529]
[1771047814200,0.014529,68863.0,68854.0,0.014531]
[1771047814402,0.05303389,68873.0,68854.0,0.014531]
[1771047814403,0.014528,68867.0,68861.0,0.014529]
[1771047814604,0.0146,68869.0,68865.0,0.014529]
[1771047815094,0.0146,68869.0,68866.0,0.003]
[1771047815494,0.014527,68872.0,68866.0,0.003]
[1771047815701,0.014528,68870.0,68866.0,0.003]
[1771047816704,0.014528,68869.0,68865.0,0.014529]
[1771047816901,0.0146,68868.0,68864.0,0.014529]
[1771047817202,0.0146,68868.0,68866.0,0.001]
[1771047817498,0.014527,68873.0,68867.0,0.014528]
[1771047817701,0.0146,68872.0,68867.0,0.014528]
[1771047817902,0.0146,68872.0,68865.0,0.016529]
[1771047818403,0.014528,68871.0,68865.0,0.016529]
[1771047818703,0.007589,68871.0,68866.0,0.014528]
[1771047818998,0.0146,68872.0,68868.0,0.014528]
[1771047819304,0.029127,68872.0,68867.0,0.014528]
[1771047819505,0.014527,68871.0,68866.0,0.015528]
[1771047819801,0.029055,68871.0,68866.0,0.015528]
[1771047820205,0.029055,68871.0,68866.0,0.014528]
[1771047820396,0.014527,68871.0,68866.0,0.014528]
[1771047821003,0.014527,68871.0,68866.0,0.015528]
[1771047821797,0.029055,68871.0,68866.0,0.015528]
[1771047821998,0.014527,68871.0,68866.0,0.015528]
[1771047824108,0.029055,68871.0,68866.0,0.015528]
[1771047825211,0.014528,68870.0,68866.0,0.015528]
[1771047825805,0.014527,68872.0,68867.0,0.014528]
[1771047826012,0.014527,68871.0,68867.0,0.014528]
[1771047826206,0.014527,68871.0,68866.0,0.015528]
[1771047826411,0.016528,68870.0,68865.0,0.014529]
[1771047826910,0.014528,68870.0,68865.0,0.014529]
[1771047827713,0.016528,68870.0,68865.0,0.014529]
[1771047827913,0.016528,68870.0,68865.0,0.014528]
[1771047828116,0.014528,68870.0,68865.0,0.014528]
[1771047828411,0.016528,68870.0,68865.0,0.014528]
[1771047829612,0.016528,68870.0,68865.0,0.029057]
[1771047830119,0.016528,68870.0,68866.0,0.014528]
[1771047830614,0.002,68870.0,68866.0,0.014528]
[1771047831112,0.002,68870.0,68865.0,0.014528]
[1771047831309,6e-05,68871.0,68867.0,0.014528]
[1771047831512,0.014527,68873.0,68867.0,0.014528]
[1771047831709,0.029087,68871.0,68867.0,0.014528]
[1771047832208,0.01456,68871.0,68866.0,0.014528]
[1771047832401,0.01456,68871.0,68867.0,0.014528]
[1771047832606,0.01456,68871.0,68868.0,0.014528]
[1771047832813,0.01456,68873.0,68871.0,0.014527]
[1771047833015,0.01456,68873.0,68870.0,0.014528]
[1771047833212,0.01456,68874.0,68870.0,0.014528]
[1771047833406,0.002,68871.0,68869.0,0.014528]
[1771047833812,0.014527,68873.0,68869.0,0.014528]
[1771047834013,0.016527,68873.0,68869.0,0.014528]
[1771047834210,0.014527,68873.0,68869.0,0.014528]
[1771047834408,0.029087,68874.0,68869.0,0.014528]
[1771047834610,0.001,68871.0,68869.0,0.014528]
[1771047834814,0.029087,68874.0,68869.0,0.014528]
[1771047835611,0.01456,68874.0,68869.0,0.014528]
[1771047835813,0.029087,68874.0,68869.0,0.014528]
[1771047836015,0.029087,68874.0,68869.0,0.029056]
[1771047836215,0.014527,68873.0,68868.0,0.014528]
[1771047836814,0.029087,68874.0,68869.0,0.014528]
[1771047837011,0.014528,68867.0,68865.0,0.01456]
[1771047837215,0.014528,68867.0,68863.0,0.014529]
[1771047837518,0.014529,68866.0,68861.0,0.014529]
[1771047837719,0.014528,68867.0,68862.0,0.014529]
[1771047838122,0.014528,68867.0,68860.0,0.02909]
[1771047838518,0.014528,68867.0,68862.0,0.014529]
[1771047839221,0.029056,68867.0,68862.0,0.014529]
[1771047839821,0.029056,68867.0,68862.0,0.018529]
[1771047840022,0.014528,68866.0,68862.0,0.018529]
[1771047840725,0.014528,68866.0,68862.0,0.014529]
[1771047841723,0.014528,68866.0,68862.0,0.019529]
[1771047843024,0.014528,68866.0,68862.0,0.014529]
[1771047843227,0.014528,68866.0,68862.0,0.018529]
[1771047843726,0.014528,68866.0,68862.0,0.014529]
[1771047844628,0.014528,68867.0,68862.0,0.034058]
[1771047845231,0.014528,68867.0,68862.0,0.029058]
[1771047845530,0.014528,68867.0,68862.0,0.034058]
[1771047845733,0.014528,68867.0,68863.0,0.014529]
[1771047847146,0.014528,68866.0,68863.0,0.005]
[1771047847344,0.014528,68867.0,68863.0,0.019529]
[1771047854148,0.014528,68866.0,68863.0,0.005]
[1771047854547,0.014528,68867.0,68863.0,0.005]
[1771047854951,0.014528,68867.0,68863.0,0.019529]
[1771047855451,0.014528,68867.0,68863.0,0.014529]
[1771047855653,0.014528,68867.0,68863.0,0.021529]
[1771047856248,0.014528,68867.0,68863.0,0.018529]
[1771047857754,0.014528,68867.0,68863.0,0.014529]
[1771047858053,0.014528,68867.0,68863.0,0.018529]
[1771047858251,0.014528,68867.0,68863.0,0.014529]
[1771047858856,0.014528,68867.0,68863.0,0.018529]
[1771047859157,0.014528,68867.0,68863.0,0.022529]
[1771047860750,0.014528,68867.0,68863.0,0.014529]
[1771047860951,0.029088,68867.0,68863.0,0.017529]
[1771047861258,0.029088,68867.0,68863.0,0.014529]
[1771047861453,0.029088,68867.0,68863.0,0.003]
[1771047861760,0.029088,68867.0,68863.0,0.017529]
[1771047863457,0.014528,68866.0,68860.0,0.02909]
[1771047863661,0.014529,68862.0,68858.0,0.01456]
[1771047863960,0.01453,68861.0,68857.0,0.02909]
[1771047864465,0.01453,68861.0,68860.0,0.003]
[1771047864657,0.01453,68861.0,68857.0,0.02909]
[1771047865062,0.01453,68861.0,68857.0,0.03309]
[1771047865562,0.01453,68861.0,68857.0,0.02909]
[1771047867063,0.014529,68862.0,68857.0,0.02909]
[1771047868359,0.015529,68862.0,68857.0,0.02909]
[1771047868758,0.015529,68862.0,68858.0,0.01453]
[1771047870364,0.018529,68862.0,68858.0,0.01453]
[1771047872466,0.004,68862.0,68859.0,0.01453]
[1771047873770,0.014529,68863.0,68859.0,0.01453]
[1771047873971,0.006,68862.0,68859.0,0.01453]
[1771047874872,0.014529,68863.0,68859.0,0.01453]
[1771047875068,0.020529,68863.0,68859.0,0.01453]
[1771047876271,0.014529,68863.0,68859.0,0.01453]
[1771047876572,0.006,68862.0,68859.0,0.01453]
[1771047876871,0.020529,68863.0,68859.0,0.01453]
[1771047880176,0.019529,68863.0,68859.0,0.01453]
[1771047882476,0.019529,68863.0,68857.0,0.02909]
[1771047883077,0.019529,68863.0,68858.0,0.01453]
[1771047883672,0.019529,68863.0,68859.0,0.01453]
[1771047883978,0.014529,68863.0,68857.0,0.02909]
[1771047884176,0.019529,68863.0,68857.0,0.02909]
[1771047884570,0.019529,68863.0,68858.0,0.01453]
[1771047884774,0.019529,68863.0,68857.0,0.02909]
[1771047885381,0.019529,68863.0,68857.0,0.01456]
[1771047886081,0.014529,68863.0,68857.0,0.01456]
[1771047886274,0.034058,68863.0,68858.0,0.01453]
[1771047886473,0.019529,68863.0,68858.0,0.01453]
[1771047887878,0.019529,68863.0,68859.0,0.01453]
[1771047888982,0.019529,68863.0,68858.0,0.01453]
[1771047889683,0.019529,68863.0,68859.0,0.01453]
[1771047891980,0.014529,68862.0,68857.0,0.01456]
[1771047892378,0.019529,68863.0,68858.0,0.01453]
[1771047893075,0.034058,68863.0,68857.0,0.01456]
[1771047893275,0.004,68862.0,68858.0,0.01453]
[1771047894375,0.034058,68863.0,68858.0,0.01453]
[1771047895376,0.004,68862.0,68858.0,0.01453]
[1771047895682,0.004,68862.0,68847.0,0.05239833]
[1771047895981,0.004,68862.0,68853.0,0.014531]
[1771047895982,0.01453,68861.0,68853.0,0.014531]
[1771047896182,0.01453,68861.0,68857.0,0.01453]
[1771047896380,0.014529,68862.0,68855.0,0.014531]
[1771047896680,0.018529,68862.0,68857.0,0.01453]
[1771047896883,0.018529,68862.0,68857.0,0.02906]
[1771047897189,0.006,68861.0,68857.0,0.02906]
[1771047897486,0.006,68861.0,68857.0,0.01453]
[1771047897884,0.006,68861.0,68857.0,0.02906]
[1771047898484,0.014529,68862.0,68857.0,0.02906]
[1771047898680,0.01453,68861.0,68853.0,0.014531]
[1771047898887,0.01453,68861.0,68854.0,0.01456]
[1771047899377,0.01653,68861.0,68854.0,0.01456]
[1771047899685,0.01453,68861.0,68857.0,0.01453]
[1771047899876,0.01653,68861.0,68857.0,0.01453]
[1771047900580,0.01653,68861.0,68854.0,0.014531]
[1771047900581,0.01453,68859.0,68854.0,0.014531]
[1771047900777,0.02646006,68845.0,68824.0,0.05239833]
[1771047900973,0.15988,68844.0,68834.0,0.014535]
[1771047901174,0.014532,68850.0,68843.0,0.014533]
[1771047901378,0.01456,68849.0,68845.0,0.014533]
[1771047901682,0.01456,68852.0,68848.0,0.014532]
[1771047901878,0.01456,68852.0,68844.0,0.029093]
[1771047901879,0.014532,68851.0,68844.0,0.029093]
[1771047902073,0.014532,68851.0,68847.0,0.21784]
[1771047902273,0.014532,68850.0,68847.0,0.21784]
[1771047902474,0.014532,68852.0,68848.0,0.48246655]
[1771047902680,0.014532,68851.0,68848.0,0.48246655]
[1771047902882,0.014531,68854.0,68848.0,0.48246655]
[1771047903077,0.01456,68855.0,68847.0,0.01456]
[1771047903285,0.001,68850.0,68848.0,0.48246655]
[1771047903789,0.001,68850.0,68849.0,0.21784]
[1771047904488,0.015532,68851.0,68849.0,0.21784]
[1771047904686,0.014532,68850.0,68847.0,0.01456]
[1771047904887,0.014532,68850.0,68848.0,0.48246655]
[1771047906392,0.015532,68850.0,68848.0,0.48246655]
[1771047906691,0.015532,68850.0,68847.0,0.01456]
[1771047906885,0.015532,68850.0,68848.0,0.48246655]
[1771047907081,0.01453,68860.0,68850.0,0.06348505]
[1771047907283,0.014531,68854.0,68850.0,0.04895305]
[1771047907483,0.01456,68857.0,68850.0,0.04895305]
[1771047907680,0.0512352,68872.0,68853.0,0.04895305]
[1771047907882,0.118027,68871.0,68854.0,0.06348405]
[1771047908083,0.02906,68860.0,68854.0,0.06348405]
[1771047908292,0.01453,68860.0,68854.0,0.06348405]
[1771047908498,0.01456,68861.0,68854.0,0.06348405]
[1771047909692,0.01453,68859.0,68854.0,0.06348405]
[1771047909888,0.014529,68865.0,68857.0,0.04895305]
[1771047910198,0.014529,68863.0,68857.0,0.04895305]
[1771047910394,0.014529,68863.0,68857.0,0.5314196]
[1771047910700,0.01456,68864.0,68857.0,0.5314196]
[1771047910898,0.01456,68864.0,68857.0,0.04895305]
[1771047911691,0.01453,68859.0,68857.0,0.04895305]
[1771047912998,0.01453,68861.0,68857.0,0.04895305]
[1771047913204,0.014529,68863.0,68857.0,0.04895305]
[1771047913205,0.014529,68863.0,68857.0,0.5314196]
[1771047913499,0.01456,68864.0,68857.0,0.5324196]
[1771047914000,0.01453,68861.0,68857.0,0.5324196]
[1771047914196,0.01453,68859.0,68857.0,0.48346655]
[1771047914501,0.014529,68862.0,68857.0,0.48246655]
[1771047914898,0.43490895,68893.0,68858.0,0.04895305]
[1771047915097,0.01456,68883.0,68867.0,0.04895305]
[1771047915402,0.029085,68883.0,68869.0,0.04895305]
[1771047915993,0.014527,68874.0,68869.0,0.04895305]
[1771047916391,0.014527,68874.0,68868.0,0.029088]
[1771047916392,0.0146,68888.0,68878.0,0.014526]
[1771047916590,0.004,68883.0,68878.0,0.0146]
[1771047916789,0.014525,68882.0,68878.0,0.0146]
[1771047919602,0.014525,68882.0,68878.0,0.0156]
[1771047919802,0.014525,68884.0,68878.0,0.0146]
[1771047920001,0.014525,68883.0,68879.0,0.48246655]
[1771047920301,0.014524,68885.0,68879.0,0.48246655]
[1771047921090,0.0146,68888.0,68879.0,0.48246655]
[1771047921295,0.014525,68885.0,68879.0,0.49799255]
[1771047921800,0.014524,68887.0,68881.0,0.014525]
[1771047922000,0.014524,68887.0,68880.0,0.014525]
[1771047922001,0.014524,68886.0,68882.0,0.0146]
[1771047922603,0.015524,68885.0,68882.0,0.0146]
[1771047922804,0.015524,68885.0,68882.0,0.49706655]
[1771047923002,0.014524,68887.0,68882.0,0.49706655]
[1771047923304,0.014525,68884.0,68882.0,0.49706655]
[1771047923704,0.014525,68884.0,68882.0,0.49806655]
[1771047924005,0.014525,68885.0,68882.0,0.49806655]
[1771047924203,0.014525,68885.0,68882.0,0.49706655]
[1771047924507,0.015524,68887.0,68882.0,0.49706655]
[1771047924700,0.014525,68885.0,68882.0,0.49706655]
[1771047925101,0.015524,68887.0,68882.0,0.49706655]
[1771047925311,0.014525,68885.0,68882.0,0.49706655]
[1771047925604,0.015524,68887.0,68882.0,0.0146]
[1771047925907,0.015524,68887.0,68882.0,0.49706655]
[1771047926208,0.014524,68886.0,68882.0,0.49706655]
[1771047926505,0.014525,68885.0,68882.0,0.49806655]
[1771047926901,0.014525,68885.0,68882.0,0.49706655]
[1771047927102,0.015524,68887.0,68882.0,0.49706655]
[1771047927709,0.014525,68885.0,68882.0,0.49706655]
[1771047929112,0.014525,68885.0,68882.0,0.49806655]
[1771047929311,0.014525,68883.0,68877.0,0.014526]
[1771047929511,0.014525,68883.0,68878.0,0.0146]
[1771047929711,0.012525,68883.0,68878.0,0.0146]
[1771047929913,0.011815,68883.0,68878.0,0.0146]
[1771047930113,0.014525,68882.0,68878.0,0.0146]
[1771047930312,0.014525,68882.0,68879.0,0.46794055]
[1771047930699,0.02905,68882.0,68879.0,0.46794055]
[1771047931106,0.014525,68882.0,68879.0,0.46794055]
[1771047931300,0.014525,68884.0,68879.0,0.46794055]
[1771047931617,0.014525,68883.0,68879.0,0.46794055]
[1771047931908,0.014525,68883.0,68878.0,0.030126]
[1771047932106,0.014525,68883.0,68879.0,0.01456]
[1771047932704,0.013665,68883.0,68879.0,0.01456]
[1771047933413,0.012735,68883.0,68879.0,0.01456]
[1771047933912,0.014525,68882.0,68879.0,0.01456]
[1771047934108,0.014525,68882.0,68880.0,0.46794055]
[1771047934309,0.014525,68884.0,68880.0,0.46794055]
[1771047934710,0.014525,68883.0,68880.0,0.46794055]
[1771047934910,0.014524,68886.0,68880.0,0.46794055]
[1771047935113,0.014525,68882.0,68880.0,0.20475255]
[1771047935315,0.013815,68882.0,68880.0,0.20475255]
[1771047935511,0.013629,68888.0,68880.0,0.20475255]
[1771047935712,0.014525,68883.0,68880.0,0.20475255]
[1771047935914,0.015525,68883.0,68880.0,0.20475255]
[1771047936315,0.014525,68882.0,68880.0,0.20475255]
[1771047936517,0.015525,68882.0,68879.0,0.01456]
[1771047936823,0.015525,68882.0,68880.0,0.20475255]
[1771047937718,0.014525,68881.0,68880.0,0.20475255]
[1771047938312,0.014525,68880.0,68870.0,0.06879478]
[1771047938517,0.014526,68878.0,68872.0,0.014527]
[1771047938717,0.014526,68877.0,68872.0,0.014527]
[1771047939124,0.013636,68877.0,68872.0,0.014527]
[1771047939517,0.014526,68879.0,68874.0,0.014527]
[1771047939719,0.014526,68879.0,68875.0,0.01456]
[1771047939918,0.014526,68878.0,68875.0,0.01456]
[1771047941229,0.014526,68879.0,68875.0,0.01456]
[1771047941830,0.014526,68878.0,68875.0,0.01656]
[1771047942422,0.014526,68879.0,68875.0,0.031086]
[1771047942626,0.014526,68880.0,68876.0,0.014526]
[1771047942829,0.014525,68881.0,68877.0,0.014526]
[1771047943131,0.003937,68882.0,68877.0,0.014526]
[1771047943729,0.014525,68881.0,68877.0,0.014526]
[1771047946527,0.014526,68879.0,68875.0,0.01456]
[1771047946833,0.014526,68878.0,68875.0,0.01656]
[1771047947228,0.014526,68878.0,68877.0,0.002]
[1771047948432,0.014526,68878.0,68875.0,0.01456]
[1771047948736,0.014526,68879.0,68875.0,0.031086]
[1771047948934,0.014526,68878.0,68875.0,0.01656]
[1771047949437,0.014526,68878.0,68875.0,0.01456]
[1771047949632,0.014526,68878.0,68877.0,0.003]
[1771047950039,0.014526,68878.0,68875.0,0.01456]
[1771047950231,0.014526,68877.0,68875.0,0.01656]
[1771047950437,0.014527,68873.0,68871.0,0.145315]
[1771047950738,0.029054,68873.0,68871.0,0.145315]
[1771047951237,0.014527,68873.0,68871.0,0.145315]
[1771047952938,0.014527,68873.0,68871.0,0.147315]
[1771047953133,0.014528,68868.0,68861.0,0.14528]
[1771047953438,0.014528,68868.0,68863.0,0.014529]
[1771047953638,0.014528,68869.0,68864.0,0.014529]
[1771047953938,0.014528,68869.0,68865.0,0.014529]
[1771047954133,0.014528,68869.0,68866.0,0.01456]
[1771047955440,0.001,68868.0,68866.0,0.01456]
[1771047955934,0.015528,68869.0,68866.0,0.01456]
[1771047956632,0.014528,68869.0,68866.0,0.01456]
[1771047957238,0.014528,68868.0,68866.0,0.01456]
[1771047957532,0.016528,68869.0,68866.0,0.01456]
[1771047960840,0.014528,68867.0,68866.0,0.01456]
[1771047961048,0.014528,68867.0,68864.0,0.01456]
[1771047961435,0.002,68869.0,68865.0,0.014528]
[1771047961730,0.014527,68874.0,68867.0,0.014528]
[1771047962036,0.01456,68878.0,68872.0,0.05806571]
[1771047962240,0.00990016,68875.0,68873.0,0.05806571]
[1771047962440,0.01456,68879.0,68873.0,0.05806571]
[1771047962849,0.004,68874.0,68873.0,0.05806571]
[1771047963154,0.029053,68876.0,68872.0,0.01456]
[1771047963857,0.002,68875.0,68873.0,0.014527]
[1771047964052,0.014526,68878.0,68873.0,0.014527]
[1771047966665,0.014526,68878.0,68873.0,0.017527]
[1771047967258,0.014526,68877.0,68873.0,0.003]
[1771047968462,0.014526,68878.0,68873.0,0.003]
[1771047969059,0.014527,68875.0,68873.0,0.006]
[1771047969259,0.014527,68875.0,68872.0,0.01456]
[1771047969455,0.014527,68875.0,68873.0,0.006]
[1771047969860,0.014527,68875.0,68872.0,0.01456]
[1771047970059,0.014527,68875.0,68873.0,0.005]
[1771047970352,0.014527,68875.0,68872.0,0.01456]
[1771047970562,0.014527,68875.0,68873.0,0.006]
[1771047971951,0.014527,68875.0,68872.0,0.01456]
[1771047972555,0.014527,68875.0,68872.0,0.02156]
[1771047972761,0.014527,68875.0,68873.0,0.007]
[1771047973159,0.014527,68875.0,68872.0,0.02156]
[1771047974668,0.014527,68875.0,68872.0,0.01456]
[1771047974964,0.014527,68875.0,68873.0,0.007]
[1771047975366,0.014527,68875.0,68872.0,0.01456]
[1771047976267,0.014527,68875.0,68872.0,0.02156]
[1771047977059,0.014527,68874.0,68872.0,0.02156]
[1771047977255,0.01456,68879.0,68860.0,0.05806571]
[1771047977462,0.014529,68865.0,68861.0,0.01456]
[1771047977663,0.014529,68865.0,68862.0,0.01456]
[1771047979368,0.014529,68864.0,68862.0,0.02156]
[1771047979567,0.014529,68863.0,68862.0,0.02156]
[1771047980066,0.014529,68863.0,68859.0,0.01453]
[1771047980268,0.014529,68863.0,68858.0,0.01453]
[1771047981272,0.014529,68863.0,68859.0,0.01456]
[1771047981771,0.014529,68863.0,68862.0,0.001]
[1771047981974,0.014529,68863.0,68862.0,0.01456]
[1771047982166,0.014529,68863.0,68858.0,0.01453]
[1771047982362,0.019529,68863.0,68853.0,0.014531]
[1771047982563,0.01453,68859.0,68854.0,0.014531]
[1771047982769,0.01453,68859.0,68851.0,0.14532]
[1771047983068,0.01453,68859.0,68854.0,0.014531]
[1771047983270,0.01453,68859.0,68852.0,0.01456]
[1771047983469,0.01453,68859.0,68854.0,0.014531]
[1771047983669,0.01453,68861.0,68855.0,0.029091]
[1771047983970,0.01453,68861.0,68856.0,0.01453]
[1771047984171,0.01453,68861.0,68855.0,0.029091]
[1771047984370,0.02906,68859.0,68855.0,0.01456]
[1771047984676,0.01453,68859.0,68856.0,0.01456]
[1771047985276,0.014529,68862.0,68858.0,0.01453]
[1771047985476,0.004,68861.0,68857.0,0.01453]
[1771047985774,0.004,68861.0,68858.0,0.01453]
[1771047985972,0.014529,68862.0,68858.0,0.01453]
[1771047986177,0.003,68859.0,68858.0,0.01453]
[1771047987179,0.014529,68862.0,68858.0,0.01453]
[1771047988875,0.004,68861.0,68858.0,0.01653]
[1771047989482,0.019529,68862.0,68858.0,0.01653]
[1771047990082,0.019529,68862.0,68858.0,0.01453]
[1771047990881,0.014529,68862.0,68858.0,0.01453]
[1771047992181,0.019529,68862.0,68858.0,0.01653]
[1771047993677,0.014529,68862.0,68858.0,0.01453]
[1771047993981,0.023529,68862.0,68858.0,0.01853]
[1771047994484,0.038058,68862.0,68858.0,0.01853]
[1771047994782,0.014529,68862.0,68858.0,0.01453]
[1771047994970,0.029058,68862.0,68857.0,0.01453]
[1771047995382,0.029058,68862.0,68856.0,0.029091]
[1771047995585,0.029058,68862.0,68857.0,0.01453]
[1771047995784,0.029058,68862.0,68856.0,0.029091]
[1771047996076,0.01453,68861.0,68856.0,0.01456]
[1771047996382,0.01453,68859.0,68858.0,0.006]
[1771047996781,0.01453,68861.0,68858.0,0.006]
[1771047997684,0.01453,68860.0,68858.0,0.006]
[1771047997878,0.01453,68859.0,68857.0,0.004069]
[1771047998686,0.01453,68859.0,68858.0,0.007]
[1771047998880,0.01453,68860.0,68858.0,0.007]
[1771047999081,0.01453,68860.0,68857.0,0.004069]
[1771047999281,0.01453,68859.0,68857.0,0.004069]
[1771048000385,0.01453,68860.0,68857.0,0.004069]
[1771048000586,0.01453,68859.0,68857.0,0.004069]
[1771048000788,0.02906,68859.0,68857.0,0.01456]
[1771048001087,0.02906,68859.0,68857.0,0.02156]
[1771048001585,0.02906,68861.0,68857.0,0.01456]
[1771048001786,0.01453,68861.0,68857.0,0.02909]
[1771048002386,0.01453,68861.0,68857.0,0.03609]
[1771048002586,0.003,68859.0,68857.0,0.04109]
[1771048003183,0.01453,68861.0,68857.0,0.05562]